bitfinex/quotes_SOLUSD_20260214
["timestamp","ask_amount","ask_price","bid_price","bid_amount"]
[1771027873755,3.89048401,84.35,84.303,0.5]
[1771027873961,3.89048401,84.35,84.311,0.5]
[1771027874857,3.89048401,84.36,84.321,0.5]
[1771027875058,3.89048401,84.37,84.331,0.5]
[1771027875263,3.89048401,84.37,84.333,0.5]
[1771027876269,3.89048401,84.36,84.333,0.5]
[1771027877766,11.85409974,84.359,84.333,0.5]
[1771027882452,3.89048401,84.35,84.33,24.42]
[1771027882967,3.89048401,84.36,84.331,0.5]
[1771027883172,11.85409974,84.359,84.331,0.5]
[1771027885866,11.85269471,84.369,84.331,0.5]
[1771027886066,3.89048401,84.36,84.331,0.5]
[1771027887277,3.89048401,84.35,84.332,24.48]
[1771027887473,3.89048401,84.35,84.333,0.5]
[1771027887677,3.89048401,84.35,84.332,24.48]
[1771027887876,3.89048401,84.35,84.333,0.5]
[1771027888066,3.89048401,84.36,84.333,0.5]
[1771027889154,3.89048401,84.37,84.333,0.5]
[1771027890078,11.85269471,84.369,84.333,0.5]
[1771027890576,11.85269471,84.369,84.335,0.5]
[1771027897900,3.89048401,84.36,84.335,0.5]
[1771027899682,3.89048401,84.35,84.334,24.5]
[1771027899981,11.85409974,84.359,84.334,25.0]
[1771027900180,11.85409974,84.359,84.334,24.5]
[1771027900387,11.85409974,84.359,84.335,0.5]
[1771027902574,41.48443148,84.369,84.335,0.5]
[1771027903284,3.89048401,84.36,84.335,0.5]
[1771027903890,11.85409974,84.359,84.335,0.5]
[1771027906089,3.89048401,84.37,84.335,0.5]
[1771027907594,11.85283519,84.368,84.335,0.5]
[1771027907989,3.89048401,84.38,84.335,0.5]
[1771027908994,11.85129001,84.379,84.341,0.5]
[1771027909197,11.85129001,84.379,84.343,0.5]
[1771027917098,3.88939637,84.38,84.343,0.5]
[1771027919503,11.85129001,84.379,84.343,0.5]
[1771027920500,29.62562084,84.387,84.343,0.5]
[1771027920501,11.8505725,84.385,84.35,3.88939637]
[1771027920715,11.8505725,84.385,84.341,11.85661875]
[1771027920716,4.08939637,84.41,84.371,0.5]
[1771027921003,11.84707791,84.409,84.373,0.5]
[1771027921497,3.88939637,84.4,84.373,0.5]
[1771027921680,3.88939637,84.4,84.372,24.86]
[1771027921888,3.88939637,84.39,84.372,24.86]
[1771027922096,3.88939637,84.39,84.366,0.5]
[1771027924009,11.84988564,84.389,84.366,0.5]
[1771027947822,0.47011658,84.388,84.344,61.9]
[1771027948028,0.47011658,84.369,84.341,24.76]
[1771027949826,0.47011658,84.369,84.342,0.46632859]
[1771027950822,0.47011658,84.367,84.342,0.46632859]
[1771027951221,0.49957274,84.359,84.342,0.46632859]
[1771027962825,0.49403184,84.357,84.342,0.46632859]
[1771027963015,0.49403184,84.357,84.326,0.48154497]
[1771027964636,11.85452131,84.356,84.326,0.48154497]
[1771027964833,0.49403184,84.355,84.326,0.48154497]
[1771027968126,11.85480238,84.354,84.326,0.48154497]
[1771027968333,0.49403184,84.349,84.326,0.48154497]
[1771027969439,0.49403184,84.339,84.325,24.82]
[1771027970841,0.49403184,84.339,84.324,0.48154497]
[1771027971634,0.49403184,84.339,84.312,0.48154497]
[1771027974745,11.85409974,84.359,84.321,0.48154497]
[1771027975052,0.49403184,84.358,84.321,0.48154497]
[1771027975269,0.49403184,84.349,84.321,0.48154497]
[1771027979042,0.49403184,84.347,84.321,0.48154497]
[1771027980466,11.85592677,84.346,84.321,0.48154497]
[1771027980769,12.34995861,84.346,84.321,0.48154497]
[1771027981064,3.8918935,84.33,84.295,0.5]
[1771027981268,3.8918935,84.32,84.295,0.5]
[1771027985273,47.6,84.349,84.295,0.5]
[1771027985274,3.8918935,84.31,84.295,0.5]
[1771027987156,11.86034193,84.315,84.295,0.5]
[1771027988479,11.85972319,84.319,84.295,0.5]
[1771027990573,3.8918935,84.34,84.301,0.5]
[1771027991165,3.8918935,84.35,84.311,0.5]
[1771027991877,3.8918935,84.35,84.313,0.5]
[1771027992569,11.85490974,84.354,84.321,0.5]
[1771027993086,3.8918935,84.35,84.321,0.5]
[1771027994673,11.8555051,84.349,84.321,0.5]
[1771027997874,3.8918935,84.34,84.313,0.5]
[1771028004886,29.63876275,84.349,84.313,0.5]
[1771028004887,11.85585511,84.347,84.313,0.5]
[1771028005079,3.8918935,84.34,84.313,0.5]
[1771028006594,11.85587197,84.347,84.313,0.5]
[1771028007491,3.8918935,84.34,84.313,0.5]
[1771028008378,3.8918935,84.35,84.313,0.5]
[1771028009390,3.8918935,84.34,84.313,0.5]
[1771028010096,3.8918935,84.35,84.313,0.5]
[1771028012193,11.8555051,84.349,84.313,0.5]
[1771028012392,3.8918935,84.34,84.313,0.5]
[1771028014597,3.8918935,84.32,84.285,0.5]
[1771028014795,3.8918935,84.29,84.28,0.1]
[1771028016701,15.75576055,84.29,84.28,0.1]
[1771028020280,3.8918935,84.29,84.28,0.1]
[1771028020577,3.8918935,84.3,84.28,0.6]
[1771028022898,11.86253692,84.299,84.28,0.6]
[1771028031091,3.8918935,84.29,84.28,0.6]
[1771028031398,3.8918935,84.29,84.28,0.1]
[1771028033304,11.86394428,84.289,84.28,0.1]
[1771028039598,11.86394428,84.289,84.28,0.6]
[1771028040200,11.86394428,84.289,84.28,0.1]
[1771028041000,3.89774295,84.3,84.28,0.6]
[1771028041601,47.56,84.301,84.28,0.6]
[1771028041791,3.89774295,84.3,84.28,0.6]
[1771028044114,11.86208046,84.303,84.28,0.6]
[1771028044412,41.4991878,84.339,84.281,0.5]
[1771028044617,41.4991878,84.339,84.291,0.5]
[1771028045201,3.89774295,84.33,84.291,0.5]
[1771028046518,41.48934909,84.359,84.301,0.5]
[1771028046699,3.89774295,84.35,84.311,0.5]
[1771028048527,11.8555051,84.349,84.311,0.5]
[1771028049209,3.89774295,84.35,84.321,0.5]
[1771028050111,11.8555051,84.349,84.321,0.5]
[1771028051022,3.89774295,84.35,84.321,0.5]
[1771028051602,48.04,84.358,84.321,0.5]
[1771028051801,3.89774295,84.35,84.321,0.5]
[1771028055933,29.63117398,84.371,84.321,0.5]
[1771028056135,3.89774295,84.36,84.321,0.5]
[1771028056429,51.91774295,84.37,84.331,0.5]
[1771028056612,63.77041914,84.37,84.331,0.5]
[1771028056806,15.75041914,84.37,84.331,0.5]
[1771028057015,3.89774295,84.36,84.331,0.5]
[1771028059431,11.85409974,84.359,84.331,0.5]
[1771028066238,11.85409974,84.359,84.326,25.48]
[1771028066239,3.89774295,84.35,84.326,0.5]
[1771028066841,3.89774295,84.35,84.321,0.5]
[1771028071849,15.75317539,84.35,84.321,0.5]
[1771028081355,3.89774295,84.35,84.321,0.5]
[1771028084554,3.89774295,84.35,84.318,25.62]
[1771028084555,11.8538187,84.361,84.331,0.5]
[1771028087163,11.85269471,84.369,84.331,0.5]
[1771028088390,11.85409974,84.359,84.331,0.5]
[1771028093778,48.06,84.374,84.331,0.5]
[1771028093963,11.84960481,84.391,84.351,0.5]
[1771028094168,3.89774295,84.39,84.351,0.5]
[1771028094967,11.84960481,84.391,84.351,0.5]
[1771028095284,3.89774295,84.39,84.351,0.5]
[1771028096186,11.84988564,84.389,84.36,3.89774295]
[1771028096386,11.84988564,84.389,84.361,0.5]
[1771028097299,41.71996784,84.4,84.371,0.5]
[1771028097300,12.09909909,84.4,84.371,0.5]
[1771028097499,4.09774295,84.41,84.371,0.5]
[1771028098389,11.84617008,84.539,84.362,11.85367819]
[1771028098390,0.2,84.44,84.404,0.4792144]
[1771028098582,0.2,84.45,84.431,0.4792144]
[1771028098972,0.46709711,84.449,84.431,0.4792144]
[1771028100372,0.46709711,84.439,84.412,0.4792144]
[1771028100575,0.46709711,84.439,84.401,0.4792144]
[1771028103379,11.84300907,84.438,84.401,0.4792144]
[1771028103580,0.47720519,84.419,84.384,0.46526774]
[1771028103784,11.84300907,84.438,84.371,0.46526774]
[1771028103785,0.47720519,84.399,84.371,0.46526774]
[1771028104893,0.47720519,84.412,84.371,0.46526774]
[1771028105093,0.47720519,84.419,84.381,0.46526774]
[1771028105288,0.47720519,84.409,84.381,0.46526774]
[1771028108082,11.84721827,84.408,84.375,0.46526774]
[1771028108281,0.47720519,84.399,84.37,25.7]
[1771028108480,0.47720519,84.399,84.37,26.16526774]
[1771028108684,0.47720519,84.399,84.371,0.46526774]
[1771028109811,0.47720519,84.398,84.371,0.46526774]
[1771028110115,0.47720519,84.389,84.37,25.7]
[1771028110418,0.47720519,84.389,84.364,0.46526774]
[1771028111600,0.47720519,84.396,84.364,0.46526774]
[1771028112383,3.88359281,84.4,84.371,0.46526774]
[1771028112585,3.88359281,84.42,84.381,0.46526774]
[1771028112812,0.47720519,84.419,84.381,0.46526774]
[1771028113696,3.88359281,84.41,84.381,0.46526774]
[1771028113914,0.47720519,84.409,84.381,0.46526774]
[1771028122915,0.47720519,84.399,84.381,0.46526774]
[1771028123121,0.47720519,84.399,84.376,26.18526774]
[1771028123298,0.47720519,84.389,84.376,25.72]
[1771028123610,0.47720519,84.389,84.366,0.46526774]
[1771028125312,4.61729252,84.434,84.366,0.46526774]
[1771028125313,0.47720519,84.398,84.366,0.46526774]
[1771028126715,0.47720519,84.396,84.366,0.46526774]
[1771028129112,0.47720519,84.394,84.366,0.46526774]
[1771028135323,0.49874387,84.404,84.371,0.48069238]
[1771028137013,0.49874387,84.399,84.371,0.48069238]
[1771028141425,11.84792009,84.403,84.371,0.48069238]
[1771028141724,0.47682943,84.402,84.371,0.48069238]
[1771028151814,0.47682943,84.402,84.372,11.85227326]
[1771028152019,0.47682943,84.409,84.381,0.48832327]
[1771028157548,0.47682943,84.429,84.391,0.48832327]
[1771028157838,0.47682943,84.429,84.401,0.48832327]
[1771028158739,0.47682943,84.426,84.401,0.48832327]
[1771028159041,0.47682943,84.409,84.383,0.48832327]
[1771028159835,0.47682943,84.399,84.371,0.48832327]
[1771028168245,3.88751843,84.4,84.37,25.86]
[1771028168246,0.4630375,84.397,84.37,25.86]
[1771028168546,0.4630375,84.397,84.371,0.49893625]
[1771028169739,0.4630375,84.397,84.372,25.92]
[1771028169927,0.4630375,84.397,84.373,0.49893625]
[1771028171430,0.4630375,84.397,84.37,3.88751843]
[1771028171431,0.4630375,84.397,84.375,0.49893625]
[1771028173751,0.4630375,84.401,84.375,0.49893625]
[1771028174054,0.4630375,84.401,84.354,61.9]
[1771028174055,0.4630375,84.416,84.381,0.49893625]
[1771028174446,0.4630375,84.416,84.39,3.88751843]
[1771028174649,12.30925627,84.416,84.391,0.49893625]
[1771028174850,0.4630375,84.415,84.391,0.49893625]
[1771028176158,0.4630375,84.415,84.38,26.02]
[1771028176159,11.84369902,84.434,84.411,0.49893625]
[1771028176461,0.4630375,84.433,84.411,0.49893625]
[1771028190671,3.88751843,84.44,84.411,0.49893625]
[1771028190861,0.68710456,84.45,84.421,0.49893625]
[1771028191060,0.68710456,84.45,84.42,3.88751843]
[1771028191061,0.48710456,84.449,84.423,0.47541622]
[1771028192866,0.2,84.45,84.441,0.47541622]
[1771028194979,0.18710456,84.458,84.441,0.47541622]
[1771028195373,0.2,84.46,84.441,0.47541622]
[1771028196462,0.2,84.47,84.452,0.47541622]
[1771028196668,0.2,84.49,84.461,0.47541622]
[1771028196867,0.2,84.49,84.471,0.47541622]
[1771028197078,0.68710456,84.49,84.471,0.47541622]
[1771028197576,0.2,84.49,84.472,0.47541622]
[1771028197871,0.68710456,84.5,84.481,0.47541622]
[1771028198175,0.2,84.5,84.481,0.47541622]
[1771028198683,0.2,84.5,84.491,0.49035837]
[1771028200069,0.2,84.5,84.486,0.49035837]
[1771028206391,0.2,84.5,84.481,0.49035837]
[1771028210581,0.48011228,84.499,84.475,0.49035837]
[1771028210894,0.2,84.5,84.481,0.49035837]
[1771028211677,0.2,84.5,84.49,3.88751843]
[1771028211884,0.2,84.5,84.491,0.49035837]
[1771028214892,0.2,84.5,84.481,0.49035837]
[1771028215989,0.48011228,84.498,84.473,26.12]
[1771028216192,0.48011228,84.498,84.474,0.49035837]
[1771028221987,0.48580186,84.497,84.473,26.12]
[1771028223383,0.48580186,84.497,84.473,26.61948126]
[1771028223588,0.48580186,84.497,84.474,0.49948126]
[1771028223789,0.48580186,84.495,84.473,26.12]
[1771028224201,0.48580186,84.495,84.474,0.49948126]
[1771028224392,0.48580186,84.495,84.464,0.49948126]
[1771028224583,0.48580186,84.489,84.464,0.49948126]
[1771028227296,0.68580186,84.5,84.471,0.49948126]
[1771028227496,0.48580186,84.499,84.471,0.49948126]
[1771028227679,0.2,84.5,84.481,0.49948126]
[1771028229809,0.48580186,84.498,84.481,0.49948126]
[1771028230707,0.48580186,84.489,84.461,0.49948126]
[1771028232295,0.48580186,84.488,84.461,0.49948126]
[1771028233218,0.48580186,84.488,84.455,0.49948126]
[1771028233390,0.48580186,84.479,84.454,26.32]
[1771028233590,0.48580186,84.479,84.455,0.49948126]
[1771028235685,11.83664983,84.484,84.455,0.49948126]
[1771028235891,0.48580186,84.484,84.455,0.49948126]
[1771028236209,0.48580186,84.489,84.461,0.49948126]
[1771028238994,0.48580186,84.487,84.456,26.81948126]
[1771028239300,0.48580186,84.479,84.456,26.32]
[1771028241499,0.48580186,84.479,84.456,26.81948126]
[1771028243214,0.48580186,84.479,84.456,0.49948126]
[1771028244797,0.48580186,84.479,84.451,26.83948126]
[1771028245199,0.48580186,84.479,84.452,0.49948126]
[1771028257325,0.47461799,84.477,84.452,0.49948126]
[1771028259706,3.87806674,84.48,84.448,26.38]
[1771028259707,3.87806674,84.46,84.448,26.38]
[1771028259918,0.45452342,84.459,84.448,26.38]
[1771028264239,0.45452342,84.459,84.445,0.47997963]
[1771028271723,0.45452342,84.459,84.44,0.47997963]
[1771028271930,3.87806674,84.46,84.44,0.47997963]
[1771028272127,0.45452342,84.459,84.44,0.47997963]
[1771028272533,0.45452342,84.459,84.438,26.48]
[1771028273525,0.45452342,84.457,84.438,26.95997963]
[1771028275338,0.45452342,84.457,84.439,0.47997963]
[1771028277752,3.87806674,84.45,84.438,26.48]
[1771028277926,3.87806674,84.45,84.438,26.95997963]
[1771028278133,0.45452342,84.449,84.424,0.47997963]
[1771028278330,3.87806674,84.44,84.424,0.47997963]
[1771028279051,4.33259016,84.44,84.424,0.47997963]
[1771028279434,0.45452342,84.439,84.424,0.47997963]
[1771028280034,0.45452342,84.438,84.42,0.47997963]
[1771028280236,0.45452342,84.429,84.417,26.7]
[1771028281756,0.45452342,84.429,84.404,0.47065322]
[1771028282052,0.49701379,84.427,84.404,0.47065322]
[1771028282246,3.87806674,84.43,84.404,0.47065322]
[1771028282835,3.88431973,84.43,84.404,0.47065322]
[1771028283344,4.38133352,84.43,84.404,0.47065322]
[1771028286354,0.49701379,84.449,84.411,0.47065322]
[1771028287534,0.49701379,84.447,84.412,26.72]
[1771028287730,0.49701379,84.447,84.413,0.47065322]
[1771028288636,11.84216759,84.444,84.413,0.47065322]
[1771028289355,12.33918138,84.444,84.413,0.47065322]
[1771028289650,0.49701379,84.443,84.413,0.47065322]
[1771028290456,0.49701379,84.449,84.42,3.88431973]
[1771028290657,3.88431973,84.47,84.441,0.47065322]
[1771028290960,0.49701379,84.469,84.441,0.47065322]
[1771028291743,0.49701379,84.467,84.441,0.47065322]
[1771028293240,0.49701379,84.465,84.441,0.47065322]
[1771028294058,0.49701379,84.465,84.439,0.47065322]
[1771028294662,0.49701379,84.463,84.439,0.47065322]
[1771028300540,0.49701379,84.461,84.439,0.47065322]
[1771028303662,0.49701379,84.459,84.434,26.72]
[1771028304051,0.2,84.449,84.422,0.47065322]
[1771028304257,4.08431973,84.44,84.422,0.47065322]
[1771028304573,0.2,84.439,84.422,0.47065322]
[1771028306468,0.2,84.439,84.398,0.47065322]
[1771028306765,3.88431973,84.44,84.41,3.88431973]
[1771028306950,0.2,84.439,84.411,0.47065322]
[1771028307869,3.88431973,84.42,84.396,0.47065322]
[1771028310153,15.72996319,84.42,84.396,0.47065322]
[1771028311054,15.92996319,84.42,84.396,0.47065322]
[1771028311252,0.2,84.419,84.393,26.76]
[1771028311463,3.88431973,84.4,84.381,0.46067819]
[1771028311656,3.88431973,84.41,84.381,0.46067819]
[1771028311856,0.2,84.416,84.381,0.46067819]
[1771028312261,0.2,84.416,84.383,0.46067819]
[1771028312853,11.84623585,84.415,84.383,0.46067819]
[1771028313053,11.84623585,84.415,84.38,4.08431973]
[1771028313054,11.84623585,84.415,84.385,0.46067819]
[1771028313250,3.88431973,84.4,84.385,0.46067819]
[1771028313462,0.2,84.409,84.385,0.46067819]
[1771028313868,11.84623585,84.415,84.385,0.46067819]
[1771028314178,3.88431973,84.41,84.385,0.46067819]
[1771028318978,0.2,84.418,84.385,0.46067819]
[1771028321477,3.88431973,84.4,84.385,0.46067819]
[1771028321678,0.2,84.399,84.384,26.78]
[1771028321886,0.2,84.399,84.38,0.65339357]
[1771028323157,0.2,84.399,84.381,0.45339357]
[1771028323964,3.88431973,84.4,84.381,0.45339357]
[1771028324561,11.84711985,84.409,84.381,0.45339357]
[1771028324972,12.04711985,84.409,84.381,0.45339357]
[1771028326478,11.84648574,84.414,84.381,0.45339357]
[1771028326678,3.88431973,84.42,84.381,0.45339357]
[1771028326979,4.08431973,84.42,84.383,0.45339357]
[1771028327184,0.2,84.419,84.383,0.45339357]
[1771028327484,11.84584598,84.418,84.383,0.45339357]
[1771028328491,11.84584598,84.418,84.391,0.45339357]
[1771028329785,0.2,84.428,84.393,0.45339357]
[1771028330191,0.2,84.436,84.401,0.45339357]
[1771028330366,11.84286881,84.439,84.401,0.45339357]
[1771028330568,11.84286881,84.439,84.403,0.45339357]
[1771028330767,12.04286881,84.439,84.403,0.45339357]
[1771028331290,0.2,84.438,84.403,0.45339357]
[1771028331869,11.84314933,84.437,84.403,0.45339357]
[1771028332189,0.2,84.436,84.403,0.45339357]
[1771028334184,11.84342985,84.435,84.403,0.45339357]
[1771028335588,0.2,84.435,84.403,0.45339357]
[1771028337495,11.84357012,84.434,84.403,0.45339357]
[1771028338496,9.84357012,84.434,84.403,0.45339357]
[1771028338678,29.6041779,84.448,84.411,0.45339357]
[1771028338679,11.8421748,84.444,84.411,0.45339357]
[1771028338881,11.8421748,84.444,84.421,0.45339357]
[1771028340668,3.88431973,84.45,84.421,0.45339357]
[1771028340990,0.2,84.474,84.441,0.47654711]
[1771028341196,12.03726133,84.479,84.451,0.47654711]
[1771028341376,0.2,84.478,84.451,0.47654711]
[1771028341775,0.2,84.478,84.44,3.88431973]
[1771028341776,0.2,84.491,84.461,0.47654711]
[1771028341979,0.2,84.498,84.461,0.47654711]
[1771028342793,0.2,84.496,84.461,0.47654711]
[1771028343886,11.83501982,84.495,84.461,0.47654711]
[1771028344475,0.2,84.494,84.461,0.47654711]
[1771028347390,11.83529996,84.493,84.461,0.47654711]
[1771028348696,0.2,84.493,84.461,0.47654711]
[1771028348888,0.2,84.489,84.461,0.47654711]
[1771028351502,12.03588674,84.489,84.461,0.47654711]
[1771028352012,0.2,84.488,84.461,0.47654711]
[1771028360108,0.2,84.5,84.471,0.47654711]
[1771028360408,0.2,84.51,84.482,0.47654711]
[1771028360605,0.2,84.51,84.484,0.47654711]
[1771028361291,0.2,84.51,84.48,3.8788055]
[1771028361292,0.2,84.51,84.486,0.47654711]
[1771028366500,0.2,84.51,84.49,3.8788055]
[1771028366702,0.2,84.51,84.491,0.47654711]
[1771028371607,0.2,84.51,84.493,0.48663747]
[1771028374326,0.2,84.52,84.501,0.48663747]
[1771028374500,0.4777551,84.519,84.501,0.48663747]
[1771028374704,0.4777551,84.519,84.502,27.24]
[1771028374908,0.2,84.52,84.504,0.48663747]
[1771028377922,0.2,84.53,84.506,0.48663747]
[1771028378237,0.2,84.53,84.511,0.47768813]
[1771028378727,0.46817683,84.529,84.511,0.47768813]
[1771028379819,0.46817683,84.529,84.512,27.75768813]
[1771028380322,0.46817683,84.529,84.513,0.47768813]
[1771028386825,0.2,84.53,84.513,0.47768813]
[1771028387024,0.46817683,84.554,84.521,0.47768813]
[1771028387230,0.46817683,84.554,84.527,0.47768813]
[1771028387433,0.46817683,84.554,84.529,0.47768813]
[1771028388230,0.46817683,84.552,84.529,0.47768813]
[1771028390332,0.1,84.56,84.529,0.47768813]
[1771028390534,0.1,84.57,84.551,0.47768813]
[1771028390716,0.1,84.57,84.552,0.47768813]
[1771028391342,0.1,84.57,84.553,0.47768813]
[1771028392037,0.1,84.57,84.554,27.46]
[1771028392220,0.1,84.57,84.555,0.47768813]
[1771028393423,0.1,84.57,84.555,27.93768813]
[1771028394840,0.46817683,84.569,84.555,26.46]
[1771028395039,0.46817683,84.569,84.555,26.16]
[1771028395221,0.46817683,84.569,84.521,0.5]
[1771028395420,3.8788055,84.56,84.522,27.46]
[1771028395742,3.8788055,84.56,84.523,0.5]
[1771028397544,3.8788055,84.56,84.525,0.5]
[1771028399130,0.1,84.57,84.525,0.5]
[1771028399337,3.8788055,84.56,84.531,0.5]
[1771028401344,11.82606227,84.559,84.529,27.46]
[1771028401561,3.8788055,84.55,84.521,0.5]
[1771028401739,3.8788055,84.53,84.506,0.5]
[1771028402125,3.8788055,84.54,84.506,0.5]
[1771028402326,11.82886005,84.539,84.506,0.5]
[1771028402727,11.82886005,84.539,84.481,29.59245274]
[1771028402728,3.8788055,84.52,84.448,61.9]
[1771028402941,3.8788055,84.52,84.481,0.5]
[1771028403245,3.8788055,84.53,84.501,0.5]
[1771028404947,3.87545574,84.53,84.501,0.5]
[1771028405326,11.82968141,84.534,84.501,0.5]
[1771028405538,3.87545574,84.54,84.501,0.5]
[1771028405740,3.87545574,84.53,84.501,0.5]
[1771028406747,3.87545574,84.52,84.499,27.48]
[1771028408452,3.87545574,84.52,84.499,27.98]
[1771028408650,4.61729252,84.548,84.499,27.98]
[1771028408651,3.87545574,84.54,84.501,0.5]
[1771028409750,11.82927983,84.536,84.501,0.5]
[1771028411932,3.87545574,84.53,84.502,0.5]
[1771028412134,3.87545574,84.52,84.499,27.48]
[1771028413543,11.82899997,84.538,84.501,0.5]
[1771028413743,11.82899997,84.538,84.502,0.5]
[1771028414250,3.87545574,84.53,84.502,0.5]
[1771028417538,11.8292965,84.536,84.502,0.5]
[1771028418440,45.12,84.57,84.502,0.5]
[1771028418644,41.39156044,84.559,84.521,0.5]
[1771028420255,3.87545574,84.54,84.511,0.5]
[1771028421258,15.70424391,84.54,84.511,0.5]
[1771028423272,3.97545574,84.57,84.531,0.5]
[1771028423460,59.10252493,84.599,84.53,3.87545574]
[1771028423461,3.87545574,84.58,84.541,0.5]
[1771028423647,3.87545574,84.57,84.541,0.5]
[1771028424841,11.82466388,84.569,84.541,0.5]
[1771028425559,3.87545574,84.56,84.531,0.5]
[1771028425940,41.38632358,84.569,84.531,0.5]
[1771028426457,3.87545574,84.56,84.531,0.5]
[1771028426964,11.82606227,84.559,84.531,0.5]
[1771028436476,3.87545574,84.55,84.525,0.5]
[1771028437265,11.82746099,84.549,84.525,0.5]
[1771028437974,3.87545574,84.54,84.513,27.42]
[1771028438176,3.87545574,84.54,84.508,0.5]
[1771028440174,3.87545574,84.53,84.508,0.5]
[1771028441271,11.82886005,84.539,84.508,0.5]
[1771028441661,3.87545574,84.54,84.508,0.5]
[1771028441861,11.82774785,84.547,84.511,0.5]
[1771028442365,11.82774785,84.547,84.513,0.5]
[1771028449171,41.39170746,84.558,84.521,0.5]
[1771028449370,3.87545574,84.55,84.521,0.5]
[1771028449683,11.82746099,84.549,84.521,0.5]
[1771028450485,3.87545574,84.56,84.521,0.5]
[1771028451279,3.87545574,84.55,84.521,0.5]
[1771028451666,3.87545574,84.54,84.521,0.5]
[1771028451864,3.87545574,84.54,84.518,27.5]
[1771028452885,3.87545574,84.54,84.518,28.0]
[1771028453092,3.87545574,84.54,84.519,0.5]
[1771028453788,15.70428776,84.54,84.519,0.5]
[1771028456596,29.56802605,84.551,84.519,0.5]
[1771028457999,41.38779177,84.566,84.519,0.5]
[1771028459895,3.87545574,84.56,84.519,0.5]
[1771028460293,3.87545574,84.56,84.507,27.52]
[1771028460294,3.87545574,84.55,84.507,27.52]
[1771028460483,3.87545574,84.55,84.508,0.5]
[1771028460884,4.61729252,84.556,84.508,0.5]
[1771028461284,41.39317603,84.555,84.508,0.5]
[1771028462381,3.87545574,84.55,84.508,0.5]
[1771028463083,44.92,84.549,84.508,0.5]
[1771028463794,41.3966031,84.548,84.508,0.5]
[1771028471706,11.82886005,84.539,84.508,0.5]
[1771028473398,41.3966031,84.548,84.508,0.5]
[1771028476191,41.3966031,84.548,84.491,27.4]
[1771028476192,3.87479364,84.54,84.503,0.5]
[1771028477616,3.87479364,84.52,84.444,5.36086188]
[1771028477918,3.87479364,84.52,84.471,0.5]
[1771028478289,3.87479364,84.52,84.481,0.5]
[1771028479906,41.41080703,84.519,84.481,0.5]
[1771028480690,3.87479364,84.51,84.481,0.5]
[1771028483394,11.8330592,84.509,84.481,0.5]
[1771028484513,41.41178697,84.517,84.481,0.5]
[1771028488797,3.87479364,84.51,84.481,0.5]
[1771028489715,41.4157072,84.509,84.481,0.5]
[1771028496120,11.83193913,84.517,84.481,0.5]
[1771028496329,3.87479364,84.51,84.481,0.5]
[1771028497615,11.8330592,84.509,84.481,0.5]
[1771028502341,41.41178697,84.517,84.481,0.5]
[1771028503211,3.87479364,84.51,84.481,0.5]
[1771028503937,41.41178697,84.517,84.481,0.5]
[1771028504730,11.83193913,84.517,84.481,0.5]
[1771028506436,29.57671528,84.526,84.481,0.5]
[1771028508238,3.87479364,84.52,84.481,0.5]
[1771028512124,29.57671528,84.526,84.481,0.5]
[1771028516821,3.87479364,84.52,84.481,0.5]
[1771028518624,11.83165915,84.519,84.481,0.5]
[1771028519445,11.83165915,84.519,84.478,27.26]
[1771028519446,3.87479364,84.51,84.478,27.26]
[1771028519748,3.87479364,84.51,84.479,0.5]
[1771028520445,3.87479364,84.5,84.474,0.5]
[1771028520643,11.83445957,84.499,84.474,0.5]
[1771028524824,11.83445957,84.499,84.47,0.5]
[1771028525148,3.87479364,84.49,84.47,0.5]
[1771028525446,15.70911316,84.5,84.47,0.5]
[1771028526740,3.87479364,84.49,84.47,0.5]
[1771028528740,15.71051482,84.49,84.47,0.5]
[1771028528941,15.71501863,84.49,84.47,0.5]
[1771028531731,3.87929745,84.5,84.47,0.5]
[1771028534149,11.83445957,84.499,84.47,0.5]
[1771028536733,3.87929745,84.52,84.47,0.5]
[1771028536734,11.83165915,84.519,84.481,0.5]
[1771028538342,41.41080703,84.519,84.481,0.5]
[1771028538545,3.87929745,84.51,84.481,0.5]